bitfinex-derivatives/quotes_SOLF0:USTF0_20251023
["timestamp","ask_amount","ask_price","bid_price","bid_amount"]
[1761252911858,3.82806615,189.93,189.91,2.87]
[1761252915561,3.82806615,189.93,189.82,74.71197751]
[1761252915760,1.58,189.88,189.82,2.87]
[1761252916064,5.40806615,189.88,189.82,2.87]
[1761252916263,3.62753495,189.89,189.78,12.65229501]
[1761252916564,9.44368811,189.91,189.84,4.46715755]
[1761252916764,1.58,189.89,189.86,2.87]
[1761252917362,4.23615316,189.9,189.87,2.87]
[1761252917666,6.46875632,189.93,189.87,2.87]
[1761252917860,1.58,189.92,189.87,2.87]
[1761252918062,9.12940235,189.93,189.87,2.87]
[1761252918063,1.58,189.91,189.87,2.87]
[1761252919166,5.82064603,189.91,189.87,2.87]
[1761252919367,8.97824603,189.92,189.87,2.87]
[1761252919668,8.97824603,189.92,189.88,2.87]
[1761252919869,4.24064603,189.92,189.89,2.87]
[1761252920169,10.30928283,189.93,189.89,2.87]
[1761252920361,10.30928283,189.93,189.79,62.0]
[1761252920362,8.72928283,189.93,189.9,1.59715755]
[1761252920568,6.46875632,189.96,189.91,2.87]
[1761252921162,15.09061638,189.96,189.91,2.87]
[1761252921367,8.62186006,189.95,189.91,2.87]
[1761252921565,1.58,189.94,189.82,2.87]
[1761252921770,1.58,189.94,189.88,4.46715755]
[1761252921771,10.20186006,189.94,189.88,4.46715755]
[1761252922859,4.48908639,189.94,189.91,2.87]
[1761252923070,13.35981498,189.95,189.91,2.87]
[1761252923270,6.46875632,189.96,189.91,2.87]
[1761252923671,19.82545193,189.96,189.91,2.87]
[1761252923874,8.62019561,189.95,189.91,2.87]
[1761252924175,10.20019561,189.95,189.91,4.46715755]
[1761252924372,8.62019561,189.95,189.92,2.87]
[1761252924666,4.1319762,189.95,189.92,2.87]
[1761252924866,4.88875632,189.96,189.93,4.7371]
[1761252925063,8.62010438,189.96,189.94,2.87]
[1761252925262,4.48812818,189.96,189.94,2.87]
[1761252925465,4.131835,189.96,189.94,2.87]
[1761252925672,8.61996318,189.97,189.94,2.87]
[1761252927066,10.19996318,189.97,189.94,2.87]
[1761252927266,15.0887195,189.97,189.91,6.33475755]
[1761252927465,10.19856643,189.96,189.92,2.77]
[1761252928367,3.97840597,189.95,189.92,2.77]
[1761252928674,3.97840597,189.94,189.92,2.77]
[1761252928873,3.97840597,189.93,189.92,2.77]
[1761252929066,3.97840597,189.95,189.92,2.77]
[1761252929266,1.58,189.92,189.86,2.82]
[1761252929567,1.58,189.9,189.86,2.82]
[1761252929767,3.97840597,189.89,189.86,2.82]
[1761252929967,3.97840597,189.88,189.86,2.82]
[1761252930266,3.97840597,189.87,189.86,2.82]
[1761252930471,5.55840597,189.89,189.86,2.82]
[1761252930666,3.97840597,189.88,189.86,2.82]
[1761252930873,3.97840597,189.87,189.86,2.82]
[1761252931178,3.97840597,189.88,189.86,2.82]
[1761252931471,3.97840597,189.87,189.84,6.33645755]
[1761252931676,3.97840597,189.88,189.85,2.82]
[1761252931876,3.97840597,189.87,189.85,2.82]
[1761252932073,3.97840597,189.88,189.85,2.82]
[1761252932276,3.97840597,189.87,189.85,2.82]
[1761252932471,3.97840597,189.9,189.87,2.82]
[1761252932776,3.97840597,189.92,189.87,2.82]
[1761252932977,3.97840597,189.91,189.87,2.82]
[1761252933171,3.97840597,189.9,189.87,2.82]
[1761252933474,12.52283946,189.93,189.87,2.82]
[1761252933673,3.97840597,189.92,189.88,4.7383]
[1761252933876,9.63374341,189.94,189.89,2.82]
[1761252933877,3.97840597,189.91,189.89,2.82]
[1761252934179,4.7371,189.94,189.89,2.82]
[1761252934180,3.97840597,189.9,189.89,2.82]
[1761252934477,5.55840597,189.93,189.89,2.82]
[1761252934674,3.97840597,189.92,189.89,2.82]
[1761252934876,3.97840597,189.91,189.89,2.82]
[1761252935077,3.97840597,189.9,189.89,2.82]
[1761252935276,3.97840597,189.92,189.89,2.82]
[1761252935474,3.97840597,189.91,189.89,2.82]
[1761252935677,3.97840597,189.9,189.89,2.82]
[1761252935881,3.97840597,189.92,189.89,2.82]
[1761252936176,3.97840597,189.91,189.89,2.82]
[1761252936367,1.58,189.93,189.89,2.82]
[1761252936368,3.97840597,189.9,189.89,2.82]
[1761252936569,3.97840597,189.92,189.89,2.82]
[1761252936874,3.97840597,189.91,189.89,2.82]
[1761252937075,3.97840597,189.9,189.89,2.82]
[1761252937378,3.97840597,189.92,189.89,2.82]
[1761252937679,3.97840597,189.91,189.89,2.82]
[1761252937867,3.97840597,189.9,189.89,2.82]
[1761252938069,3.97840597,189.92,189.89,2.82]
[1761252938278,3.97840597,189.91,189.89,2.82]
[1761252938480,3.97840597,189.9,189.89,2.82]
[1761252938775,3.97840597,189.92,189.89,2.82]
[1761252938978,3.97840597,189.91,189.89,2.82]
[1761252939176,3.97840597,189.9,189.89,2.82]
[1761252939371,3.97840597,189.92,189.89,2.82]
[1761252939576,3.97840597,189.91,189.9,2.82]
[1761252939776,5.55840597,189.93,189.9,2.82]
[1761252939970,1.58,189.91,189.85,2.82]
[1761252940172,5.55840597,189.9,189.85,2.82]
[1761252940367,5.55840597,189.89,189.86,7.5589]
[1761252940576,9.29291464,189.93,189.87,2.82]
[1761252940577,3.97840597,189.91,189.87,2.82]
[1761252940781,3.97840597,189.9,189.87,2.82]
[1761252940972,3.97840597,189.89,189.87,2.82]
[1761252941172,3.97840597,189.91,189.87,2.82]
[1761252941372,3.97840597,189.9,189.87,2.82]
[1761252941582,3.97840597,189.89,189.87,2.82]
[1761252941782,5.55840597,189.92,189.87,2.82]
[1761252942085,3.97840597,189.91,189.87,7.5586]
[1761252942275,3.97840597,189.9,189.87,7.5586]
[1761252942582,1.58,189.92,189.87,7.5586]
[1761252942882,3.96953729,189.91,189.87,7.5586]
[1761252943078,3.96953729,189.9,189.87,7.5586]
[1761252943283,3.96953729,189.91,189.88,2.82]
[1761252943577,3.96953729,189.9,189.88,2.82]
[1761252943782,3.96953729,189.91,189.88,2.82]
[1761252944083,3.96953729,189.9,189.88,2.82]
[1761252944382,3.96953729,189.91,189.88,2.82]
[1761252944576,3.96953729,189.9,189.88,2.82]
[1761252944880,3.96953729,189.91,189.89,2.82]
[1761252945078,3.96953729,189.9,189.89,2.82]
[1761252945279,3.96953729,189.91,189.89,2.82]
[1761252945580,3.96953729,189.9,189.86,1.59715755]
[1761252945778,7.75870187,189.94,189.86,1.59715755]
[1761252945979,4.00807303,189.94,189.86,1.59715755]
[1761252946476,2.82,189.93,189.86,1.59715755]
[1761252946674,2.82,189.93,189.84,1.59715755]
[1761252947188,4.7373,189.93,189.87,4.7385]
[1761252947478,2.82,189.92,189.87,4.7385]
[1761252947672,7.5578,189.91,189.85,4.739]
[1761252947868,7.5578,189.91,189.83,4.41715755]
[1761252948080,7.5578,189.91,189.84,2.82]
[1761252948869,9.63394341,189.93,189.88,2.82]
[1761252949074,2.82,189.92,189.88,2.82]
[1761252955782,4.7376,189.92,189.88,2.82]
[1761252955978,2.82,189.91,189.88,2.82]
[1761252956982,9.63374341,189.94,189.88,7.5583]
[1761252957175,9.63374341,189.94,189.89,2.82]
[1761252957176,2.82,189.93,189.89,2.82]
[1761252957684,6.7886609,189.92,189.89,2.82]
[1761252957887,3.9686609,189.91,189.89,2.82]
[1761252958080,3.9686609,189.9,189.89,2.82]
[1761252958282,3.9686609,189.91,189.89,2.82]
[1761252958585,3.9686609,189.9,189.89,2.82]
[1761252958783,3.9686609,189.91,189.89,2.82]
[1761252958987,3.9686609,189.9,189.89,2.82]
[1761252959183,3.9686609,189.91,189.89,2.82]
[1761252959389,3.9686609,189.9,189.89,2.82]
[1761252959586,3.9686609,189.91,189.89,2.82]
[1761252959786,3.9686609,189.9,189.89,2.82]
[1761252959981,3.9686609,189.91,189.89,2.82]
[1761252960182,2.7,189.89,189.86,4.7388]
[1761252960483,6.6686609,189.89,189.86,7.4888]
[1761252960680,2.7,189.89,189.86,7.4888]
[1761252961284,6.66954789,189.91,189.87,2.75]
[1761252961587,3.96954789,189.9,189.88,2.75]
[1761252961785,3.96954789,189.89,189.87,4.7386]
[1761252961986,6.66954789,189.9,189.87,4.7386]
[1761252962188,3.96954789,189.89,189.87,4.7386]
[1761252963488,6.66954789,189.88,189.83,1.59715755]
[1761252963689,2.7,189.86,189.81,4.34715755]
[1761252963891,2.7,189.85,189.81,2.75]
[1761252964192,2.7,189.84,189.78,4.34715755]
[1761252964391,6.66954789,189.84,189.78,4.34715755]
[1761252964591,6.66954789,189.83,189.79,2.75]
[1761252964792,2.7,189.83,189.79,2.75]
[1761252965191,2.7,189.87,189.83,2.75]
[1761252965393,6.66573356,189.86,189.83,2.75]
[1761252965687,3.96573356,189.85,189.82,1.59715755]
[1761252965891,2.7,189.85,189.82,1.59715755]
[1761252966794,2.7,189.85,189.81,2.75]
[1761252967896,3.96573356,189.86,189.8,2.75]
[1761252968088,3.96573356,189.87,189.8,2.75]
[1761252969086,6.66573356,189.87,189.82,7.4898]
[1761252969298,6.66573356,189.86,189.82,7.4898]
[1761252969600,2.7,189.86,189.82,7.4898]
[1761252970299,6.6656682,189.86,189.82,7.4898]
[1761252970504,2.7,189.86,189.82,7.4898]
[1761252972497,6.66655842,189.86,189.83,2.75]
[1761252972798,3.96655842,189.85,189.83,2.75]
[1761252973199,8.70515842,189.88,189.82,4.7398]
[1761252973404,2.7,189.86,189.83,4.7396]
[1761252973703,6.66655842,189.86,189.83,4.7396]
[1761252973904,3.96655842,189.85,189.83,4.7396]
[1761252974300,2.7,189.86,189.83,7.4896]
[1761252974504,6.66655842,189.86,189.83,7.4896]
[1761252974704,3.96655842,189.85,189.83,7.4896]
[1761252975099,2.7,189.86,189.83,7.4896]
[1761252975703,6.66655842,189.86,189.83,7.4896]
[1761252975895,3.96655842,189.85,189.83,2.75]
[1761252976101,2.7,189.86,189.83,2.75]
[1761252976801,6.66655842,189.86,189.79,5.24691501]
[1761252977804,6.66655842,189.86,189.79,2.49691501]
[1761252978009,2.7,189.85,189.81,7.4901]
[1761252979902,2.7,189.85,189.81,4.7401]
[1761252980302,7.4393,189.85,189.79,4.7406]
[1761252980513,2.7,189.83,189.79,4.7406]
[1761252981506,2.7,189.86,189.81,2.75]
[1761252981712,6.66017042,189.86,189.81,2.75]
[1761252981905,2.7,189.86,189.81,2.75]
[1761252982105,2.7,189.86,189.82,7.4898]
[1761252982812,6.66021914,189.86,189.82,7.4898]
[1761252983004,2.7,189.86,189.82,7.4898]
[1761252986109,2.7,189.86,189.82,2.75]
[1761252986310,6.65790665,189.86,189.82,2.75]
[1761252986714,2.71,189.85,189.79,2.89]
[1761252987016,2.71,189.85,189.81,4.74]
[1761252987316,2.71,189.85,189.81,7.63]
[1761252989311,3.95790665,189.86,189.82,4.7399]
[1761252989518,11.30670665,189.87,189.83,2.76]
[1761252989716,6.56790665,189.86,189.83,2.76]
[1761252994017,2.61,189.86,189.83,2.76]
[1761252994405,6.57660576,189.86,189.83,2.76]
[1761252994612,2.61,189.86,189.83,2.76]
[1761252994916,6.57580853,189.86,189.83,2.76]
[1761252995117,2.61,189.86,189.83,2.76]
[1761252995511,6.57595083,189.86,189.83,2.76]
[1761252995717,2.61,189.86,189.83,2.76]
[1761252995916,6.57625027,189.86,189.83,2.76]
[1761252997621,3.96625027,189.86,189.79,2.76]
[1761252997823,3.96625027,189.88,189.79,2.76]
[1761252998121,3.96625027,189.87,189.79,2.76]
[1761252998326,3.96625027,189.88,189.79,2.76]
[1761252998513,3.96625027,189.87,189.81,2.49691501]
[1761252998709,6.57625027,189.88,189.82,2.76]
[1761252998912,6.57625027,189.87,189.82,2.76]
[1761252999124,3.96625027,189.86,189.84,2.76]
[1761252999514,2.61,189.87,189.84,2.76]
[1761252999715,6.57625027,189.87,189.84,2.76]
[1761252999915,3.96625027,189.86,189.84,2.76]
[1761253000116,2.61,189.87,189.84,2.76]
[1761253000315,6.60394739,189.87,189.84,2.76]
[1761253000517,3.99394739,189.86,189.84,2.76]
[1761253002517,3.99394739,189.86,189.84,4.7394]
[1761253002723,3.99394739,189.89,189.85,2.76]
[1761253002920,3.99394739,189.88,189.85,2.76]
[1761253003125,3.99394739,189.9,189.85,2.76]
[1761253003324,3.99394739,189.89,189.85,2.76]
[1761253003529,3.99394739,189.88,189.85,2.76]
[1761253003726,3.99394739,189.9,189.85,2.76]
[1761253003926,3.99394739,189.89,189.85,2.76]
[1761253004129,3.99394739,189.88,189.87,7.4986]
[1761253004319,2.61,189.91,189.88,2.76]
[1761253004521,3.98707587,189.9,189.88,2.76]
[1761253004721,3.98707587,189.89,189.88,2.76]
[1761253005725,3.98707587,189.91,189.89,2.76]
[1761253005919,3.98707587,189.9,189.89,2.76]
[1761253006122,3.98707587,189.93,189.89,2.76]
[1761253006321,6.59707587,189.92,189.89,2.76]
[1761253006624,3.98707587,189.91,189.89,2.76]
[1761253006825,3.98707587,189.9,189.89,2.76]
[1761253007025,3.98707587,189.9,189.87,2.49691501]
[1761253007026,2.61,189.89,189.87,2.76]
[1761253007225,3.98707587,189.88,189.87,2.76]
[1761253007921,6.59707587,189.88,189.86,4.7388]
[1761253008122,2.61,189.88,189.86,4.7388]
[1761253008630,2.61,189.88,189.86,7.4988]
[1761253009124,6.59766759,189.88,189.86,7.4988]
[1761253009329,2.61,189.88,189.86,7.4988]
[1761253009830,2.61,189.88,189.79,2.76]
[1761253010032,2.61,189.86,189.82,2.76]
[1761253010230,6.59719088,189.86,189.82,2.76]
[1761253010531,2.61,189.86,189.82,2.76]
[1761253010719,6.59571691,189.85,189.82,2.76]
[1761253010924,2.61,189.85,189.82,2.76]
[1761253011419,2.61,189.85,189.83,4.7396]
[1761253011618,2.61,189.85,189.83,7.4996]
[1761253011828,6.59568479,189.85,189.83,7.4996]
[1761253012027,2.61,189.85,189.83,7.4996]
[1761253013028,6.59625358,189.85,189.83,7.4996]
[1761253013223,2.61,189.85,189.83,7.4996]
[1761253013828,3.98735471,189.86,189.85,2.76]
[1761253014028,3.98735471,189.89,189.85,2.76]
[1761253014323,3.98735471,189.88,189.85,2.76]
[1761253014529,3.98735471,189.9,189.85,2.76]
[1761253014726,6.59735471,189.89,189.85,2.76]
[1761253014925,3.98735471,189.88,189.85,7.4991]
[1761253015125,3.98735471,189.88,189.86,2.76]
[1761253020439,6.65735471,189.88,189.86,2.76]
[1761253020630,2.67,189.88,189.86,2.76]
[1761253021238,6.65039559,189.88,189.86,2.76]
[1761253021427,2.67,189.88,189.86,2.76]
[1761253021827,6.65049928,189.89,189.87,2.84]
[1761253022039,3.98049928,189.88,189.87,2.84]
[1761253022338,3.98049928,189.88,189.86,4.7388]
[1761253022541,3.98049928,189.88,189.82,4.7397]
[1761253022542,2.67,189.87,189.82,4.7397]
[1761253022839,2.67,189.85,189.81,2.84]
[1761253023034,6.65049928,189.85,189.81,2.84]
[1761253023237,2.67,189.85,189.81,2.84]
[1761253023436,2.67,189.85,189.82,2.84]
[1761253024138,2.67,189.85,189.82,7.5798]
[1761253024337,6.6490673,189.85,189.82,7.5798]
[1761253024535,2.67,189.85,189.82,7.5798]
[1761253025346,6.64960684,189.85,189.82,7.5798]
[1761253025643,2.67,189.85,189.83,2.84]
[1761253026441,2.67,189.85,189.82,4.7398]
[1761253026636,6.64938928,189.85,189.82,4.7398]
[1761253026838,2.67,189.85,189.82,7.5798]
[1761253027132,2.67,189.85,189.82,2.84]
[1761253027341,6.6549241,189.84,189.81,2.84]
[1761253027533,2.67,189.84,189.81,2.84]
[1761253028447,6.65491111,189.84,189.81,2.84]
[1761253028649,2.67,189.84,189.81,2.84]
[1761253029536,6.65288761,189.84,189.81,2.84]
[1761253029844,2.67,189.84,189.81,2.84]
[1761253030144,6.6529315,189.87,189.81,2.84]
[1761253030349,3.9829315,189.86,189.81,2.84]
[1761253030643,6.6529315,189.85,189.81,2.84]
[1761253030844,3.9829315,189.84,189.81,2.84]
[1761253031044,2.67,189.84,189.82,4.7398]
[1761253031742,6.6529315,189.84,189.82,4.7398]
[1761253031943,2.67,189.84,189.82,4.7398]
[1761253032741,6.65191884,189.84,189.82,4.7398]
[1761253032940,2.67,189.84,189.82,4.7398]
[1761253033844,6.66212092,189.84,189.82,4.7398]
[1761253034044,2.67,189.84,189.82,4.7398]
[1761253034844,6.65989152,189.84,189.82,4.7398]
[1761253035045,2.67,189.84,189.82,4.7398]
[1761253035944,6.66324578,189.84,189.82,4.7398]
[1761253036144,2.67,189.84,189.81,2.84]
[1761253036743,2.67,189.84,189.81,7.5801]
[1761253036949,6.66245278,189.84,189.81,7.5801]
[1761253037143,2.67,189.84,189.74,2.84]
[1761253037350,2.67,189.82,189.79,4.43822541]
[1761253038046,2.67,189.84,189.81,4.43822541]
[1761253038249,3.99034444,189.83,189.81,4.43822541]
[1761253040350,6.66034444,189.83,189.81,2.84]
[1761253040552,2.67,189.83,189.81,2.84]
[1761253041142,3.99064227,189.83,189.81,2.84]
[1761253041342,2.67,189.84,189.81,2.84]
[1761253041545,3.99064227,189.83,189.81,2.84]
[1761253042550,3.99064227,189.85,189.82,2.84]
[1761253042748,6.66126836,189.86,189.82,2.84]
[1761253042938,3.99126836,189.85,189.82,2.84]
[1761253043140,3.99126836,189.84,189.82,2.84]
[1761253043451,3.99126836,189.85,189.83,2.84]
[1761253046254,3.99126836,189.85,189.84,4.43822541]
[1761253046454,3.99126836,189.88,189.85,2.81]
[1761253046755,3.99126836,189.88,189.78,9.4819]
[1761253046756,3.9968236,189.89,189.88,2.81]
[1761253047052,2.76,189.91,189.88,2.81]
[1761253047456,3.99279194,189.9,189.88,2.81]
[1761253047753,3.99279194,189.89,189.88,2.81]
[1761253048255,2.76,189.91,189.88,2.81]
[1761253048757,3.97766079,189.9,189.88,2.81]
[1761253049054,3.97766079,189.89,189.88,2.81]
[1761253049253,3.97766079,189.9,189.88,2.81]
[1761253049455,3.97766079,189.89,189.88,2.81]
[1761253049644,3.97766079,189.9,189.89,2.71]
[1761253049849,2.67,189.92,189.89,4.30822541]
[1761253050050,3.97766079,189.91,189.9,2.71]
[1761253050853,3.97766079,189.91,189.89,4.30822541]
[1761253051052,3.97766079,189.9,189.89,4.30822541]
[1761253051352,3.97766079,189.91,189.89,4.30822541]
[1761253051655,3.97766079,189.9,189.89,4.30822541]
[1761253051959,3.97619847,189.91,189.89,4.30822541]
[1761253052954,2.67,189.92,189.9,2.71]
[1761253053354,6.64619847,189.92,189.9,2.71]
[1761253053556,3.97619847,189.91,189.9,2.71]
[1761253054159,3.97619847,189.95,189.9,2.71]
[1761253054368,3.97402774,189.94,189.92,2.71]
[1761253054658,3.97402774,189.93,189.92,2.71]
[1761253054857,3.97402774,189.93,189.91,4.30822541]
[1761253055057,3.97402774,189.92,189.91,4.30822541]
[1761253055258,3.97402774,189.93,189.91,4.30822541]
[1761253055458,3.97402774,189.92,189.91,4.30822541]
[1761253055659,3.97402774,189.93,189.91,4.30822541]
[1761253055859,3.97402774,189.92,189.91,4.30822541]
[1761253056156,3.97402774,189.93,189.91,4.30822541]
[1761253056964,3.97253916,189.93,189.91,4.30822541]
[1761253057359,2.67,189.94,189.92,2.71]
[1761253057559,6.64253916,189.94,189.92,2.71]
[1761253057760,2.67,189.97,189.92,2.71]
[1761253057964,2.67,189.95,189.92,2.71]
[1761253058158,6.62420303,189.95,189.92,7.4472]
[1761253058362,3.95420303,189.94,189.92,7.4472]
[1761253058564,2.67,189.95,189.92,7.4472]
[1761253059467,6.62420303,189.95,189.92,7.4472]
[1761253059660,3.95420303,189.94,189.92,7.4472]
[1761253060055,2.67,189.95,189.92,9.04542541]
[1761253060460,6.62420303,189.95,189.92,9.04542541]
[1761253060655,2.67,189.95,189.92,9.04542541]
[1761253062462,2.67,189.95,189.93,7.4471]
[1761253065264,2.67,189.95,189.93,4.7371]
[1761253066166,2.67,189.95,189.93,7.4471]
[1761253067357,2.67,189.95,189.91,4.7376]
[1761253067561,2.67,189.95,189.89,1.59822541]
[1761253067958,2.67,189.94,189.89,1.59822541]
[1761253068171,2.67,189.94,189.9,4.7379]
[1761253070068,2.67,189.93,189.84,2.71]
[1761253070264,2.67,189.93,189.84,4.30822541]
[1761253070565,2.67,189.93,189.88,1.59822541]
[1761253070872,2.67,189.93,189.89,2.71]
[1761253071967,2.67,189.93,189.9,4.7378]
[1761253072565,2.67,189.92,189.9,4.7378]
[1761253073274,2.67,189.92,189.89,2.71]
[1761253078475,6.61606026,189.94,189.9,2.71]
[1761253078877,6.61606026,189.94,189.91,2.83]
[1761253079072,2.62,189.93,189.91,2.83]
[1761253081587,2.62,189.93,189.9,4.7379]
[1761253081978,2.62,189.93,189.9,7.5679]
[1761253084072,3.94606026,189.94,189.91,4.7376]
[1761253084274,2.62,189.95,189.92,2.83]
[1761253084476,6.56606026,189.95,189.92,2.83]
[1761253084673,3.94606026,189.94,189.92,2.83]
[1761253084878,2.62,189.95,189.92,2.83]
[1761253085076,6.56606026,189.95,189.92,2.83]
[1761253085280,3.94606026,189.94,189.92,2.83]
[1761253085681,3.94606026,189.94,189.92,7.5674]
[1761253085682,2.62,189.94,189.92,7.5674]
[1761253086176,6.56606026,189.94,189.92,7.5674]
[1761253086382,3.94606026,189.93,189.92,7.5674]
[1761253086577,2.62,189.96,189.93,7.567]
[1761253086787,3.95430564,189.95,189.93,7.567]
[1761253086989,2.62,189.95,189.93,7.567]
[1761253087182,3.95430564,189.94,189.93,7.567]
[1761253089282,2.62,189.93,189.91,4.7375]
[1761253089484,6.57430564,189.93,189.87,2.83]
[1761253089680,6.57430564,189.92,189.87,2.83]
[1761253089880,2.62,189.92,189.87,2.83]
[1761253090086,2.62,189.92,189.9,7.5679]
[1761253090687,6.58155751,189.92,189.9,7.5679]
[1761253090891,2.62,189.92,189.9,7.5679]
[1761253091490,4.7368,189.95,189.9,7.5679]
[1761253091491,2.62,189.94,189.9,7.5679]
[1761253091691,6.58521704,189.93,189.9,7.5679]
[1761253091989,3.96521704,189.92,189.9,7.5679]
[1761253092189,2.62,189.93,189.9,7.5679]
[1761253092491,3.96528462,189.92,189.9,7.5679]
[1761253092691,2.62,189.93,189.9,7.5679]
[1761253092881,3.96528462,189.92,189.9,7.5679]
[1761253093187,4.91614534,189.96,189.64,251.0]
[1761253093188,29.06,189.91,189.64,251.0]
[1761253093387,29.06,189.91,189.34,64.94721027]
[1761253093388,4.9885449,189.67,189.34,64.94721027]
[1761253093590,4.9885449,189.67,189.27,73.9467]
[1761253093591,4.9885449,189.45,189.35,13.14879801]
[1761253093786,2.49427245,189.35,189.07,22.97628791]
[1761253093988,2.49427245,189.29,189.08,2.49427245]
[1761253094179,3.96747829,189.28,189.15,9.82183853]
[1761253094383,6.46175074,189.27,189.06,9.82183853]
[1761253094585,6.46175074,189.27,189.15,15.8]
[1761253094586,2.49427245,189.22,189.15,15.8]
[1761253094786,6.56628485,189.21,189.08,6.74612978]
[1761253095094,4.91614534,189.14,189.06,9.82183853]
[1761253095384,4.91614534,189.14,188.96,46.32]
[1761253095385,6.56089922,189.11,188.94,2.83]
[1761253095594,6.56089922,189.11,189.01,15.8]
[1761253095595,4.82038454,189.05,189.01,15.8]
[1761253095780,12.28331931,189.04,189.01,6.74612978]
[1761253096085,4.81964737,189.05,189.0,2.83]
[1761253096289,12.91213046,189.16,189.06,6.74612978]
[1761253096490,17.17753585,189.15,189.09,2.83]
[1761253096784,1.29518424,189.14,189.02,6.74612978]
[1761253096985,9.69914514,189.13,189.12,6.74612978]
[1761253097184,6.38028589,189.16,189.12,6.74612978]
[1761253097387,4.75783367,189.13,189.12,6.74612978]
[1761253097594,4.75783367,189.19,189.03,7.4395]
[1761253097794,4.49291639,189.18,189.1,6.74612978]
[1761253097986,2.61279932,189.29,189.11,6.60440424]
[1761253098186,8.83093709,189.34,189.12,6.60440424]
[1761253098387,8.48,189.28,189.13,6.60440424]
[1761253098691,197.8316,189.57,189.14,6.60440424]
[1761253098892,6.74612978,189.34,189.15,6.60440424]
[1761253099088,6.74612978,189.36,189.16,6.60440424]
[1761253099387,4.7477,189.52,189.06,74.0293]
[1761253099388,11.66,189.38,189.17,6.60440424]
[1761253099590,73.8353,189.56,189.18,6.60440424]
[1761253099591,6.74612978,189.33,189.18,6.60440424]
[1761253099781,6.74612978,189.28,189.19,6.60440424]
[1761253099981,2.62,189.22,189.02,11.44]
[1761253100681,2.62,189.22,189.03,62.0]
[1761253100682,6.74612978,189.19,189.03,62.0]
[1761253100993,2.62,189.18,189.03,62.0]
[1761253101691,9.36612978,189.14,188.98,47.04]
[1761253101896,6.74612978,189.17,188.99,3.87219696]
[1761253102088,6.74612978,189.17,189.0,3.87219696]
[1761253102288,6.74612978,189.12,188.98,47.04]
[1761253102991,2.62,189.11,188.98,47.04]
[1761253103185,6.74612978,189.07,188.92,4.04183853]
[1761253103385,2.62,189.06,188.92,4.04183853]
[1761253103682,151.98,189.22,188.92,4.04183853]
[1761253103683,2.62,189.11,188.92,4.04183853]
[1761253104088,2.62,189.11,188.93,51.8622]
[1761253104687,2.62,189.11,188.94,62.0]
[1761253105692,2.62,189.11,188.95,4.7618]
[1761253106992,2.62,189.11,188.93,47.1]
[1761253107193,2.7,189.08,188.93,47.1]
[1761253108189,6.74612978,189.04,188.93,47.1]
[1761253108385,2.7,189.03,188.71,4.77030114]
[1761253108588,2.7,188.91,188.79,4.7657]
[1761253108792,2.7,188.97,188.8,62.0]
[1761253109395,2.69,188.96,188.73,74.1577]
[1761253109696,2.69,188.96,188.72,128.22742978]
[1761253109697,2.69,188.96,188.81,4.7652]
[1761253110391,2.69,188.96,188.75,6.74612978]
[1761253110392,2.69,188.96,188.77,4.7663]
[1761253110583,2.69,188.96,188.78,6.74612978]
[1761253110787,2.69,189.01,188.79,74.1359]
[1761253110983,2.69,189.01,188.87,4.7637]
[1761253111190,2.69,189.01,188.81,74.1245]